{"text_format":"1","workbook":"xlsx","n_sheets":7,"sheets":["Forudsætninger","Eksempel","Beregning","Kladde","Gasser","Rørtyper","Versioner"],"not_rendered":{"charts":0,"images":4,"macros":1,"external_links":1,"defined_names":17,"comments":0,"pivot_tables":0},"unopened":[],"bounds":{"document_bytes":16777216,"sheet_cells":100000,"rows_first":2000,"rows_last":500,"rows_between":2000,"halvings":0,"cell_chars":16384,"cell_head_chars":4096},"cells_cut":0,"cells_raw":0,"read":"whole","date_system":"1900"}

{"sheet":"Forudsætninger","index":0,"n_rows":0,"n_cols":0,"rows_kept":0,"cut":false,"hidden":false,"merged":[]}

{"sheet":"Eksempel","index":1,"n_rows":0,"n_cols":0,"rows_kept":0,"cut":false,"hidden":false,"merged":[]}

{"sheet":"Beregning","index":2,"n_rows":49,"n_cols":16,"rows_kept":49,"cut":false,"hidden":false,"merged":[[3,1,3,3],[13,1,13,2],[9,3,9,5],[15,5,15,14],[5,3,5,4]]}
[null,"Dimensionering af gasledninger op til 100 mbar"]
[]
[]
[null,"Forudsætninger"]
[]
[null,"Vælg gastype",null,"Naturgas",null,null,null,"Øvre brændværdi [kWh/m3n]",null,null,{"$f":"HLOOKUP(gasvalg,gasegenskaber,ROW()-ROW(gasvalg)+2,FALSE)","v":12.178000000000001},null,"Tryktab til Gasfyr",null,{"$f":"F49+G49","v":{"$error":"#VALUE!"}},"mBar"]
[null,"Se under fanen \"Forudsætninger\"",null,null,null,null,null,"Massefylde [kg/m3n]",null,null,{"$f":"HLOOKUP(gasvalg,gasegenskaber,ROW()-ROW(gasvalg)+2,FALSE)","v":0.82609999999999995},null,"Tryktab til Lej 1",null,{"$f":"F49+H49+L49","v":{"$error":"#VALUE!"}},"mBar"]
[null,null,null,null,null,null,null,"Højdetrykændring [mbar/m]",null,null,{"$f":"HLOOKUP(gasvalg,gasegenskaber,ROW()-ROW(gasvalg)+4,FALSE)","v":4.5803243153858197E-2},null,"Tryktab til Lej 2",null,{"$f":"F49+H49+I49+M49","v":{"$error":"#VALUE!"}},"mBar"]
[null,null,null,null,null,null,null,null,null,null,null,null,"Tryktab til Lej 3",null,{"$f":"F49+H49+I49+J49+N49","v":{"$error":"#VALUE!"}},"mBar"]
[null,"Vælg rørtype",null,"Kobberrør",null,null,null,"Ækvivalent sandruhed K",null,null,{"$f":"IF(rørtypevalg=\"Brugerdefineret\",K_bruger,VLOOKUP(rørtypevalg,Rørtypetabel,2,FALSE))","v":5.0000000000000001E-3},null,"Tryktab til Tør",null,{"$f":"F49+H49+I49+J49+K49","v":{"$error":"#VALUE!"}},"mBar"]
[]
[null,"Brugerdefineret K",null,null,"(Indtast ækvivalent sandruhed)"]
[]
[null,"Tryktab"]
[]
[null,null,null,null,"Enhed","Strækning"]
[null,"Strækningsbetegnelse",null,null,null,"REG - A","A-FYR","A- B","B-C","C-D","D- Tør","B- Lej 1","C-Lej 2","D- Lej 3"]
[null,"Belastning/indfyret effekt",null,null,"kW"]
[null,"Gasføring",null,null,"m3n/h",{"$f":"IF(ISNUMBER(F18),F18/$K$6,\"\")","v":""},"",{"$f":"IF(ISNUMBER(H18),H18/$K$6,\"\")","v":""},"","","","","","",""]
[null,"Højdeforskel",null,null,"m"]
[null,"Tryktab p.g.a. højdeforskel",null,null,"mbar",{"$f":"IF(ISNUMBER(F20),-F20*$K$8,\"\")","v":""},{"$f":"IF(ISNUMBER(G20),-G20*$K$8,\"\")","v":""},"","","","","","","",""]
[null,"Rørlængde",null,null,"m"]
[null,"Indvendig diameter",null,null,"mm"]
[null,"Hastighed",null,null,"m/s",{"$f":"IFERROR(gashastighed(F23,F19),\"\")","v":""},{"$f":"IFERROR(gashastighed(G23,G19),\"\")","v":""},"","","","","","","",{"$f":"IFERROR(gashastighed(O23,O19),\"\")","v":""}]
[null,"Tryktab i rørledning",null,null,"mbar",{"$f":"IFERROR(tryktab(F22,\"Lige rør\",F23,$K$7,F19,$K$10),\"\")","v":""},{"$f":"IFERROR(tryktab(G22,\"Lige rør\",G23,$K$7,G19,$K$10),\"\")","v":""},"","","","","","","",""]
[null,"Komponenter"]
[null,"Formindskelsesstykke",null,null,"Antal"]
[null,"Etagebøjning",null,null,"Antal"]
[null,"90° vinkel",null,null,"Antal"]
[null,"45° vinkel",null,null,"Antal"]
[null,"90° bøjning",null,null,"Antal"]
[null,"45° bøjning",null,null,"Antal"]
[null,"90° T-stykke, gennemgang",null,null,"Antal"]
[null,"90° T-stykke, afbøjning",null,null,"Antal"]
[null,"90° rense-T",null,null,"Antal"]
[null,"90° T-stykke, modstrøm",null,null,"Antal"]
[null,"T-bøjning, gennemgang",null,null,"Antal"]
[null,"T-bøjning afbøjning",null,null,"Antal"]
[null,"Rensebøjning",null,null,"Antal"]
[null,"T-stykke, modstrøm",null,null,"Antal"]
[null,"90° kryds, gennemgang",null,null,"Antal"]
[null,"90° kryds, afbøjning",null,null,"Antal"]
[null,"90° rensekryds, gennemgang",null,null,"Antal"]
[null,"90° rensekryds, afbøjning",null,null,"Antal"]
[null,"Hane (kuglehane)",null,null,"Antal"]
[null,"Vinkelhane",null,null,"Antal"]
[null,"Ventil",null,null,"Antal",null,null,null,null,null,null,null,null,null,{"$f":"F49+G49+H49+I49+J49+K49+L49+M49+N49+O49","v":{"$error":"#VALUE!"}}]
[null,"Tryktab i komponenter",null,null,"mbar",{"$f":"Kladde!F48","v":""},{"$f":"Kladde!G48","v":""},{"$f":"Kladde!H48","v":""},{"$f":"Kladde!I48","v":""},{"$f":"Kladde!J48","v":""},{"$f":"Kladde!K48","v":""},{"$f":"Kladde!L48","v":""},{"$f":"Kladde!M48","v":""},{"$f":"Kladde!N48","v":""},{"$f":"Kladde!O48","v":""}]
[null,"Samlet tryktab",null,null,"mbar",{"$f":"IF(Kladde!F49<>0,Kladde!F49, \"\")","v":""},{"$f":"IF(Kladde!G49<>0,Kladde!G49, \"\")","v":""},{"$f":"IF(Kladde!H49<>0,Kladde!H49, \"\")","v":""},{"$f":"IF(Kladde!I49<>0,Kladde!I49, \"\")","v":""},{"$f":"IF(Kladde!J49<>0,Kladde!J49, \"\")","v":""},{"$f":"IF(Kladde!K49<>0,Kladde!K49, \"\")","v":""},{"$f":"IF(Kladde!L49<>0,Kladde!L49, \"\")","v":""},{"$f":"IF(Kladde!M49<>0,Kladde!M49, \"\")","v":""},{"$f":"IF(Kladde!N49<>0,Kladde!N49, \"\")","v":""},{"$f":"IF(Kladde!O49<>0,Kladde!O49, \"\")","v":""}]

{"sheet":"Kladde","index":3,"n_rows":49,"n_cols":15,"rows_kept":49,"cut":false,"hidden":true,"merged":[[13,1,13,2],[15,5,15,14]]}
[]
[]
[]
[]
[]
[]
[]
[]
[]
[]
[]
[]
[]
[null,"Tryktab"]
[]
[null,null,null,null,"Enhed","Strækning"]
[null,"Strækningsbetegnelse",null,null,null,"AB","BC"]
[null,"Belastning",null,null,"kW",{"$f":"Beregning!F18","v":0},{"$f":"Beregning!G18","v":0},{"$f":"Beregning!H18","v":0},{"$f":"Beregning!I18","v":0},{"$f":"Beregning!J18","v":0},{"$f":"Beregning!K18","v":0},{"$f":"Beregning!L18","v":0},{"$f":"Beregning!M18","v":0},{"$f":"Beregning!N18","v":0},{"$f":"Beregning!O18","v":0}]
[null,"Gasføring",null,null,"m3n/h",{"$f":"Beregning!F19","v":""},{"$f":"Beregning!G19","v":""},{"$f":"Beregning!H19","v":""},{"$f":"Beregning!I19","v":""},{"$f":"Beregning!J19","v":""},{"$f":"Beregning!K19","v":""},{"$f":"Beregning!L19","v":""},{"$f":"Beregning!M19","v":""},{"$f":"Beregning!N19","v":""},{"$f":"Beregning!O19","v":""}]
[null,"Højdeforskel",null,null,"m",{"$f":"Beregning!F20","v":0},{"$f":"Beregning!G20","v":0},{"$f":"Beregning!H20","v":0},{"$f":"Beregning!I20","v":0},{"$f":"Beregning!J20","v":0},{"$f":"Beregning!K20","v":0},{"$f":"Beregning!L20","v":0},{"$f":"Beregning!M20","v":0},{"$f":"Beregning!N20","v":0},{"$f":"Beregning!O20","v":0}]
[null,"Tryktab fra højdeforskel",null,null,"mbar",{"$f":"Beregning!F21","v":""},{"$f":"Beregning!G21","v":""},{"$f":"Beregning!H21","v":""},{"$f":"Beregning!I21","v":""},{"$f":"Beregning!J21","v":""},{"$f":"Beregning!K21","v":""},{"$f":"Beregning!L21","v":""},{"$f":"Beregning!M21","v":""},{"$f":"Beregning!N21","v":""},{"$f":"Beregning!O21","v":""}]
[null,"Rørlængde",null,null,"m",{"$f":"Beregning!F22","v":0},{"$f":"Beregning!G22","v":0},{"$f":"Beregning!H22","v":0},{"$f":"Beregning!I22","v":0},{"$f":"Beregning!J22","v":0},{"$f":"Beregning!K22","v":0},{"$f":"Beregning!L22","v":0},{"$f":"Beregning!M22","v":0},{"$f":"Beregning!N22","v":0},{"$f":"Beregning!O22","v":0}]
[null,"Diameter",null,null,"mm",{"$f":"Beregning!F23","v":0},{"$f":"Beregning!G23","v":0},{"$f":"Beregning!H23","v":0},{"$f":"Beregning!I23","v":0},{"$f":"Beregning!J23","v":0},{"$f":"Beregning!K23","v":0},{"$f":"Beregning!L23","v":0},{"$f":"Beregning!M23","v":0},{"$f":"Beregning!N23","v":0},{"$f":"Beregning!O23","v":0}]
[null,"Hastighed",null,null,"m/s",{"$f":"Beregning!F24","v":""},{"$f":"Beregning!G24","v":""},{"$f":"Beregning!H24","v":""},{"$f":"Beregning!I24","v":""},{"$f":"Beregning!J24","v":""},{"$f":"Beregning!K24","v":""},{"$f":"Beregning!L24","v":""},{"$f":"Beregning!M24","v":""},{"$f":"Beregning!N24","v":""},{"$f":"Beregning!O24","v":""}]
[null,"Tryktab fra rør",null,null,"mbar",{"$f":"Beregning!F25","v":""},{"$f":"Beregning!G25","v":""},{"$f":"Beregning!H25","v":""},{"$f":"Beregning!I25","v":""},{"$f":"Beregning!J25","v":""},{"$f":"Beregning!K25","v":""},{"$f":"Beregning!L25","v":""},{"$f":"Beregning!M25","v":""},{"$f":"Beregning!N25","v":""},{"$f":"Beregning!O25","v":""}]
[null,"Komponenter"]
[null,"Formindskelsesstykke",null,null,"mbar",{"$f":"tryktab(Beregning!F27,$B27,F$23,Beregning!$K$7,F$19,Beregning!$K$10)","v":{"$error":"#VALUE!"}},{"$f":"tryktab(Beregning!G27,$B27,G$23,Beregning!$K$7,G$19,Beregning!$K$10)","v":{"$error":"#VALUE!"}},{"$f":"tryktab(Beregning!H27,$B27,H$23,Beregning!$K$7,H$19,Beregning!$K$10)","v":{"$error":"#VALUE!"}},{"$f":"tryktab(Beregning!I27,$B27,I$23,Beregning!$K$7,I$19,Beregning!$K$10)","v":{"$error":"#VALUE!"}},{"$f":"tryktab(Beregning!J27,$B27,J$23,Beregning!$K$7,J$19,Beregning!$K$10)","v":{"$error":"#VALUE!"}},{"$f":"tryktab(Beregning!K27,$B27,K$23,Beregning!$K$7,K$19,Beregning!$K$10)","v":{"$error":"#VALUE!"}},{"$f":"tryktab(Beregning!L27,$B27,L$23,Beregning!$K$7,L$19,Beregning!$K$10)","v":{"$error":"#VALUE!"}},{"$f":"tryktab(Beregning!M27,$B27,M$23,Beregning!$K$7,M$19,Beregning!$K$10)","v":{"$error":"#VALUE!"}},{"$f":"tryktab(Beregning!N27,$B27,N$23,Beregning!$K$7,N$19,Beregning!$K$10)","v":{"$error":"#VALUE!"}},{"$f":"tryktab(Beregning!O27,$B27,O$23,Beregning!$K$7,O$19,Beregning!$K$10)","v":{"$error":"#VALUE!"}}]
[null,"Etagebøjning",null,null,"mbar",{"$f":"tryktab(Beregning!F28,$B28,F$23,Beregning!$K$7,F$19,Beregning!$K$10)","v":{"$error":"#VALUE!"}},{"$f":"tryktab(Beregning!G28,$B28,G$23,Beregning!$K$7,G$19,Beregning!$K$10)","v":{"$error":"#VALUE!"}},{"$f":"tryktab(Beregning!H28,$B28,H$23,Beregning!$K$7,H$19,Beregning!$K$10)","v":{"$error":"#VALUE!"}},{"$f":"tryktab(Beregning!I28,$B28,I$23,Beregning!$K$7,I$19,Beregning!$K$10)","v":{"$error":"#VALUE!"}},{"$f":"tryktab(Beregning!J28,$B28,J$23,Beregning!$K$7,J$19,Beregning!$K$10)","v":{"$error":"#VALUE!"}},{"$f":"tryktab(Beregning!K28,$B28,K$23,Beregning!$K$7,K$19,Beregning!$K$10)","v":{"$error":"#VALUE!"}},{"$f":"tryktab(Beregning!L28,$B28,L$23,Beregning!$K$7,L$19,Beregning!$K$10)","v":{"$error":"#VALUE!"}},{"$f":"tryktab(Beregning!M28,$B28,M$23,Beregning!$K$7,M$19,Beregning!$K$10)","v":{"$error":"#VALUE!"}},{"$f":"tryktab(Beregning!N28,$B28,N$23,Beregning!$K$7,N$19,Beregning!$K$10)","v":{"$error":"#VALUE!"}},{"$f":"tryktab(Beregning!O28,$B28,O$23,Beregning!$K$7,O$19,Beregning!$K$10)","v":{"$error":"#VALUE!"}}]
[null,"90° vinkel",null,null,"mbar",{"$f":"tryktab(Beregning!F29,$B29,F$23,Beregning!$K$7,F$19,Beregning!$K$10)","v":{"$error":"#VALUE!"}},{"$f":"tryktab(Beregning!G29,$B29,G$23,Beregning!$K$7,G$19,Beregning!$K$10)","v":{"$error":"#VALUE!"}},{"$f":"tryktab(Beregning!H29,$B29,H$23,Beregning!$K$7,H$19,Beregning!$K$10)","v":{"$error":"#VALUE!"}},{"$f":"tryktab(Beregning!I29,$B29,I$23,Beregning!$K$7,I$19,Beregning!$K$10)","v":{"$error":"#VALUE!"}},{"$f":"tryktab(Beregning!J29,$B29,J$23,Beregning!$K$7,J$19,Beregning!$K$10)","v":{"$error":"#VALUE!"}},{"$f":"tryktab(Beregning!K29,$B29,K$23,Beregning!$K$7,K$19,Beregning!$K$10)","v":{"$error":"#VALUE!"}},{"$f":"tryktab(Beregning!L29,$B29,L$23,Beregning!$K$7,L$19,Beregning!$K$10)","v":{"$error":"#VALUE!"}},{"$f":"tryktab(Beregning!M29,$B29,M$23,Beregning!$K$7,M$19,Beregning!$K$10)","v":{"$error":"#VALUE!"}},{"$f":"tryktab(Beregning!N29,$B29,N$23,Beregning!$K$7,N$19,Beregning!$K$10)","v":{"$error":"#VALUE!"}},{"$f":"tryktab(Beregning!O29,$B29,O$23,Beregning!$K$7,O$19,Beregning!$K$10)","v":{"$error":"#VALUE!"}}]
[null,"45° vinkel",null,null,"mbar",{"$f":"tryktab(Beregning!F30,$B30,F$23,Beregning!$K$7,F$19,Beregning!$K$10)","v":{"$error":"#VALUE!"}},{"$f":"tryktab(Beregning!G30,$B30,G$23,Beregning!$K$7,G$19,Beregning!$K$10)","v":{"$error":"#VALUE!"}},{"$f":"tryktab(Beregning!H30,$B30,H$23,Beregning!$K$7,H$19,Beregning!$K$10)","v":{"$error":"#VALUE!"}},{"$f":"tryktab(Beregning!I30,$B30,I$23,Beregning!$K$7,I$19,Beregning!$K$10)","v":{"$error":"#VALUE!"}},{"$f":"tryktab(Beregning!J30,$B30,J$23,Beregning!$K$7,J$19,Beregning!$K$10)","v":{"$error":"#VALUE!"}},{"$f":"tryktab(Beregning!K30,$B30,K$23,Beregning!$K$7,K$19,Beregning!$K$10)","v":{"$error":"#VALUE!"}},{"$f":"tryktab(Beregning!L30,$B30,L$23,Beregning!$K$7,L$19,Beregning!$K$10)","v":{"$error":"#VALUE!"}},{"$f":"tryktab(Beregning!M30,$B30,M$23,Beregning!$K$7,M$19,Beregning!$K$10)","v":{"$error":"#VALUE!"}},{"$f":"tryktab(Beregning!N30,$B30,N$23,Beregning!$K$7,N$19,Beregning!$K$10)","v":{"$error":"#VALUE!"}},{"$f":"tryktab(Beregning!O30,$B30,O$23,Beregning!$K$7,O$19,Beregning!$K$10)","v":{"$error":"#VALUE!"}}]
[null,"90° bøjning",null,null,"mbar",{"$f":"tryktab(Beregning!F31,$B31,F$23,Beregning!$K$7,F$19,Beregning!$K$10)","v":{"$error":"#VALUE!"}},{"$f":"tryktab(Beregning!G31,$B31,G$23,Beregning!$K$7,G$19,Beregning!$K$10)","v":{"$error":"#VALUE!"}},{"$f":"tryktab(Beregning!H31,$B31,H$23,Beregning!$K$7,H$19,Beregning!$K$10)","v":{"$error":"#VALUE!"}},{"$f":"tryktab(Beregning!I31,$B31,I$23,Beregning!$K$7,I$19,Beregning!$K$10)","v":{"$error":"#VALUE!"}},{"$f":"tryktab(Beregning!J31,$B31,J$23,Beregning!$K$7,J$19,Beregning!$K$10)","v":{"$error":"#VALUE!"}},{"$f":"tryktab(Beregning!K31,$B31,K$23,Beregning!$K$7,K$19,Beregning!$K$10)","v":{"$error":"#VALUE!"}},{"$f":"tryktab(Beregning!L31,$B31,L$23,Beregning!$K$7,L$19,Beregning!$K$10)","v":{"$error":"#VALUE!"}},{"$f":"tryktab(Beregning!M31,$B31,M$23,Beregning!$K$7,M$19,Beregning!$K$10)","v":{"$error":"#VALUE!"}},{"$f":"tryktab(Beregning!N31,$B31,N$23,Beregning!$K$7,N$19,Beregning!$K$10)","v":{"$error":"#VALUE!"}},{"$f":"tryktab(Beregning!O31,$B31,O$23,Beregning!$K$7,O$19,Beregning!$K$10)","v":{"$error":"#VALUE!"}}]
[null,"45° bøjning",null,null,"mbar",{"$f":"tryktab(Beregning!F32,$B32,F$23,Beregning!$K$7,F$19,Beregning!$K$10)","v":{"$error":"#VALUE!"}},{"$f":"tryktab(Beregning!G32,$B32,G$23,Beregning!$K$7,G$19,Beregning!$K$10)","v":{"$error":"#VALUE!"}},{"$f":"tryktab(Beregning!H32,$B32,H$23,Beregning!$K$7,H$19,Beregning!$K$10)","v":{"$error":"#VALUE!"}},{"$f":"tryktab(Beregning!I32,$B32,I$23,Beregning!$K$7,I$19,Beregning!$K$10)","v":{"$error":"#VALUE!"}},{"$f":"tryktab(Beregning!J32,$B32,J$23,Beregning!$K$7,J$19,Beregning!$K$10)","v":{"$error":"#VALUE!"}},{"$f":"tryktab(Beregning!K32,$B32,K$23,Beregning!$K$7,K$19,Beregning!$K$10)","v":{"$error":"#VALUE!"}},{"$f":"tryktab(Beregning!L32,$B32,L$23,Beregning!$K$7,L$19,Beregning!$K$10)","v":{"$error":"#VALUE!"}},{"$f":"tryktab(Beregning!M32,$B32,M$23,Beregning!$K$7,M$19,Beregning!$K$10)","v":{"$error":"#VALUE!"}},{"$f":"tryktab(Beregning!N32,$B32,N$23,Beregning!$K$7,N$19,Beregning!$K$10)","v":{"$error":"#VALUE!"}},{"$f":"tryktab(Beregning!O32,$B32,O$23,Beregning!$K$7,O$19,Beregning!$K$10)","v":{"$error":"#VALUE!"}}]
[null,"90° T-stykke gennemgang",null,null,"mbar",{"$f":"tryktab(Beregning!F33,$B33,F$23,Beregning!$K$7,F$19,Beregning!$K$10)","v":{"$error":"#VALUE!"}},{"$f":"tryktab(Beregning!G33,$B33,G$23,Beregning!$K$7,G$19,Beregning!$K$10)","v":{"$error":"#VALUE!"}},{"$f":"tryktab(Beregning!H33,$B33,H$23,Beregning!$K$7,H$19,Beregning!$K$10)","v":{"$error":"#VALUE!"}},{"$f":"tryktab(Beregning!I33,$B33,I$23,Beregning!$K$7,I$19,Beregning!$K$10)","v":{"$error":"#VALUE!"}},{"$f":"tryktab(Beregning!J33,$B33,J$23,Beregning!$K$7,J$19,Beregning!$K$10)","v":{"$error":"#VALUE!"}},{"$f":"tryktab(Beregning!K33,$B33,K$23,Beregning!$K$7,K$19,Beregning!$K$10)","v":{"$error":"#VALUE!"}},{"$f":"tryktab(Beregning!L33,$B33,L$23,Beregning!$K$7,L$19,Beregning!$K$10)","v":{"$error":"#VALUE!"}},{"$f":"tryktab(Beregning!M33,$B33,M$23,Beregning!$K$7,M$19,Beregning!$K$10)","v":{"$error":"#VALUE!"}},{"$f":"tryktab(Beregning!N33,$B33,N$23,Beregning!$K$7,N$19,Beregning!$K$10)","v":{"$error":"#VALUE!"}},{"$f":"tryktab(Beregning!O33,$B33,O$23,Beregning!$K$7,O$19,Beregning!$K$10)","v":{"$error":"#VALUE!"}}]
[null,"90° T-stykke afbøjning",null,null,"mbar",{"$f":"tryktab(Beregning!F34,$B34,F$23,Beregning!$K$7,F$19,Beregning!$K$10)","v":{"$error":"#VALUE!"}},{"$f":"tryktab(Beregning!G34,$B34,G$23,Beregning!$K$7,G$19,Beregning!$K$10)","v":{"$error":"#VALUE!"}},{"$f":"tryktab(Beregning!H34,$B34,H$23,Beregning!$K$7,H$19,Beregning!$K$10)","v":{"$error":"#VALUE!"}},{"$f":"tryktab(Beregning!I34,$B34,I$23,Beregning!$K$7,I$19,Beregning!$K$10)","v":{"$error":"#VALUE!"}},{"$f":"tryktab(Beregning!J34,$B34,J$23,Beregning!$K$7,J$19,Beregning!$K$10)","v":{"$error":"#VALUE!"}},{"$f":"tryktab(Beregning!K34,$B34,K$23,Beregning!$K$7,K$19,Beregning!$K$10)","v":{"$error":"#VALUE!"}},{"$f":"tryktab(Beregning!L34,$B34,L$23,Beregning!$K$7,L$19,Beregning!$K$10)","v":{"$error":"#VALUE!"}},{"$f":"tryktab(Beregning!M34,$B34,M$23,Beregning!$K$7,M$19,Beregning!$K$10)","v":{"$error":"#VALUE!"}},{"$f":"tryktab(Beregning!N34,$B34,N$23,Beregning!$K$7,N$19,Beregning!$K$10)","v":{"$error":"#VALUE!"}},{"$f":"tryktab(Beregning!O34,$B34,O$23,Beregning!$K$7,O$19,Beregning!$K$10)","v":{"$error":"#VALUE!"}}]
[null,"90° rense-T",null,null,"mbar",{"$f":"tryktab(Beregning!F35,$B35,F$23,Beregning!$K$7,F$19,Beregning!$K$10)","v":{"$error":"#VALUE!"}},{"$f":"tryktab(Beregning!G35,$B35,G$23,Beregning!$K$7,G$19,Beregning!$K$10)","v":{"$error":"#VALUE!"}},{"$f":"tryktab(Beregning!H35,$B35,H$23,Beregning!$K$7,H$19,Beregning!$K$10)","v":{"$error":"#VALUE!"}},{"$f":"tryktab(Beregning!I35,$B35,I$23,Beregning!$K$7,I$19,Beregning!$K$10)","v":{"$error":"#VALUE!"}},{"$f":"tryktab(Beregning!J35,$B35,J$23,Beregning!$K$7,J$19,Beregning!$K$10)","v":{"$error":"#VALUE!"}},{"$f":"tryktab(Beregning!K35,$B35,K$23,Beregning!$K$7,K$19,Beregning!$K$10)","v":{"$error":"#VALUE!"}},{"$f":"tryktab(Beregning!L35,$B35,L$23,Beregning!$K$7,L$19,Beregning!$K$10)","v":{"$error":"#VALUE!"}},{"$f":"tryktab(Beregning!M35,$B35,M$23,Beregning!$K$7,M$19,Beregning!$K$10)","v":{"$error":"#VALUE!"}},{"$f":"tryktab(Beregning!N35,$B35,N$23,Beregning!$K$7,N$19,Beregning!$K$10)","v":{"$error":"#VALUE!"}},{"$f":"tryktab(Beregning!O35,$B35,O$23,Beregning!$K$7,O$19,Beregning!$K$10)","v":{"$error":"#VALUE!"}}]
[null,"90° T-stykke modstrøm",null,null,"mbar",{"$f":"tryktab(Beregning!F36,$B36,F$23,Beregning!$K$7,F$19,Beregning!$K$10)","v":{"$error":"#VALUE!"}},{"$f":"tryktab(Beregning!G36,$B36,G$23,Beregning!$K$7,G$19,Beregning!$K$10)","v":{"$error":"#VALUE!"}},{"$f":"tryktab(Beregning!H36,$B36,H$23,Beregning!$K$7,H$19,Beregning!$K$10)","v":{"$error":"#VALUE!"}},{"$f":"tryktab(Beregning!I36,$B36,I$23,Beregning!$K$7,I$19,Beregning!$K$10)","v":{"$error":"#VALUE!"}},{"$f":"tryktab(Beregning!J36,$B36,J$23,Beregning!$K$7,J$19,Beregning!$K$10)","v":{"$error":"#VALUE!"}},{"$f":"tryktab(Beregning!K36,$B36,K$23,Beregning!$K$7,K$19,Beregning!$K$10)","v":{"$error":"#VALUE!"}},{"$f":"tryktab(Beregning!L36,$B36,L$23,Beregning!$K$7,L$19,Beregning!$K$10)","v":{"$error":"#VALUE!"}},{"$f":"tryktab(Beregning!M36,$B36,M$23,Beregning!$K$7,M$19,Beregning!$K$10)","v":{"$error":"#VALUE!"}},{"$f":"tryktab(Beregning!N36,$B36,N$23,Beregning!$K$7,N$19,Beregning!$K$10)","v":{"$error":"#VALUE!"}},{"$f":"tryktab(Beregning!O36,$B36,O$23,Beregning!$K$7,O$19,Beregning!$K$10)","v":{"$error":"#VALUE!"}}]
[null,"T-bøjning gennemgang",null,null,"mbar",{"$f":"tryktab(Beregning!F37,$B37,F$23,Beregning!$K$7,F$19,Beregning!$K$10)","v":{"$error":"#VALUE!"}},{"$f":"tryktab(Beregning!G37,$B37,G$23,Beregning!$K$7,G$19,Beregning!$K$10)","v":{"$error":"#VALUE!"}},{"$f":"tryktab(Beregning!H37,$B37,H$23,Beregning!$K$7,H$19,Beregning!$K$10)","v":{"$error":"#VALUE!"}},{"$f":"tryktab(Beregning!I37,$B37,I$23,Beregning!$K$7,I$19,Beregning!$K$10)","v":{"$error":"#VALUE!"}},{"$f":"tryktab(Beregning!J37,$B37,J$23,Beregning!$K$7,J$19,Beregning!$K$10)","v":{"$error":"#VALUE!"}},{"$f":"tryktab(Beregning!K37,$B37,K$23,Beregning!$K$7,K$19,Beregning!$K$10)","v":{"$error":"#VALUE!"}},{"$f":"tryktab(Beregning!L37,$B37,L$23,Beregning!$K$7,L$19,Beregning!$K$10)","v":{"$error":"#VALUE!"}},{"$f":"tryktab(Beregning!M37,$B37,M$23,Beregning!$K$7,M$19,Beregning!$K$10)","v":{"$error":"#VALUE!"}},{"$f":"tryktab(Beregning!N37,$B37,N$23,Beregning!$K$7,N$19,Beregning!$K$10)","v":{"$error":"#VALUE!"}},{"$f":"tryktab(Beregning!O37,$B37,O$23,Beregning!$K$7,O$19,Beregning!$K$10)","v":{"$error":"#VALUE!"}}]
[null,"T-bøjning afbøjning",null,null,"mbar",{"$f":"tryktab(Beregning!F38,$B38,F$23,Beregning!$K$7,F$19,Beregning!$K$10)","v":{"$error":"#VALUE!"}},{"$f":"tryktab(Beregning!G38,$B38,G$23,Beregning!$K$7,G$19,Beregning!$K$10)","v":{"$error":"#VALUE!"}},{"$f":"tryktab(Beregning!H38,$B38,H$23,Beregning!$K$7,H$19,Beregning!$K$10)","v":{"$error":"#VALUE!"}},{"$f":"tryktab(Beregning!I38,$B38,I$23,Beregning!$K$7,I$19,Beregning!$K$10)","v":{"$error":"#VALUE!"}},{"$f":"tryktab(Beregning!J38,$B38,J$23,Beregning!$K$7,J$19,Beregning!$K$10)","v":{"$error":"#VALUE!"}},{"$f":"tryktab(Beregning!K38,$B38,K$23,Beregning!$K$7,K$19,Beregning!$K$10)","v":{"$error":"#VALUE!"}},{"$f":"tryktab(Beregning!L38,$B38,L$23,Beregning!$K$7,L$19,Beregning!$K$10)","v":{"$error":"#VALUE!"}},{"$f":"tryktab(Beregning!M38,$B38,M$23,Beregning!$K$7,M$19,Beregning!$K$10)","v":{"$error":"#VALUE!"}},{"$f":"tryktab(Beregning!N38,$B38,N$23,Beregning!$K$7,N$19,Beregning!$K$10)","v":{"$error":"#VALUE!"}},{"$f":"tryktab(Beregning!O38,$B38,O$23,Beregning!$K$7,O$19,Beregning!$K$10)","v":{"$error":"#VALUE!"}}]
[null,"Rensebøjning",null,null,"mbar",{"$f":"tryktab(Beregning!F39,$B39,F$23,Beregning!$K$7,F$19,Beregning!$K$10)","v":{"$error":"#VALUE!"}},{"$f":"tryktab(Beregning!G39,$B39,G$23,Beregning!$K$7,G$19,Beregning!$K$10)","v":{"$error":"#VALUE!"}},{"$f":"tryktab(Beregning!H39,$B39,H$23,Beregning!$K$7,H$19,Beregning!$K$10)","v":{"$error":"#VALUE!"}},{"$f":"tryktab(Beregning!I39,$B39,I$23,Beregning!$K$7,I$19,Beregning!$K$10)","v":{"$error":"#VALUE!"}},{"$f":"tryktab(Beregning!J39,$B39,J$23,Beregning!$K$7,J$19,Beregning!$K$10)","v":{"$error":"#VALUE!"}},{"$f":"tryktab(Beregning!K39,$B39,K$23,Beregning!$K$7,K$19,Beregning!$K$10)","v":{"$error":"#VALUE!"}},{"$f":"tryktab(Beregning!L39,$B39,L$23,Beregning!$K$7,L$19,Beregning!$K$10)","v":{"$error":"#VALUE!"}},{"$f":"tryktab(Beregning!M39,$B39,M$23,Beregning!$K$7,M$19,Beregning!$K$10)","v":{"$error":"#VALUE!"}},{"$f":"tryktab(Beregning!N39,$B39,N$23,Beregning!$K$7,N$19,Beregning!$K$10)","v":{"$error":"#VALUE!"}},{"$f":"tryktab(Beregning!O39,$B39,O$23,Beregning!$K$7,O$19,Beregning!$K$10)","v":{"$error":"#VALUE!"}}]
[null,"T-stykke modstrøm",null,null,"mbar",{"$f":"tryktab(Beregning!F40,$B40,F$23,Beregning!$K$7,F$19,Beregning!$K$10)","v":{"$error":"#VALUE!"}},{"$f":"tryktab(Beregning!G40,$B40,G$23,Beregning!$K$7,G$19,Beregning!$K$10)","v":{"$error":"#VALUE!"}},{"$f":"tryktab(Beregning!H40,$B40,H$23,Beregning!$K$7,H$19,Beregning!$K$10)","v":{"$error":"#VALUE!"}},{"$f":"tryktab(Beregning!I40,$B40,I$23,Beregning!$K$7,I$19,Beregning!$K$10)","v":{"$error":"#VALUE!"}},{"$f":"tryktab(Beregning!J40,$B40,J$23,Beregning!$K$7,J$19,Beregning!$K$10)","v":{"$error":"#VALUE!"}},{"$f":"tryktab(Beregning!K40,$B40,K$23,Beregning!$K$7,K$19,Beregning!$K$10)","v":{"$error":"#VALUE!"}},{"$f":"tryktab(Beregning!L40,$B40,L$23,Beregning!$K$7,L$19,Beregning!$K$10)","v":{"$error":"#VALUE!"}},{"$f":"tryktab(Beregning!M40,$B40,M$23,Beregning!$K$7,M$19,Beregning!$K$10)","v":{"$error":"#VALUE!"}},{"$f":"tryktab(Beregning!N40,$B40,N$23,Beregning!$K$7,N$19,Beregning!$K$10)","v":{"$error":"#VALUE!"}},{"$f":"tryktab(Beregning!O40,$B40,O$23,Beregning!$K$7,O$19,Beregning!$K$10)","v":{"$error":"#VALUE!"}}]
[null,"90° kryds gennemgang",null,null,"mbar",{"$f":"tryktab(Beregning!F41,$B41,F$23,Beregning!$K$7,F$19,Beregning!$K$10)","v":{"$error":"#VALUE!"}},{"$f":"tryktab(Beregning!G41,$B41,G$23,Beregning!$K$7,G$19,Beregning!$K$10)","v":{"$error":"#VALUE!"}},{"$f":"tryktab(Beregning!H41,$B41,H$23,Beregning!$K$7,H$19,Beregning!$K$10)","v":{"$error":"#VALUE!"}},{"$f":"tryktab(Beregning!I41,$B41,I$23,Beregning!$K$7,I$19,Beregning!$K$10)","v":{"$error":"#VALUE!"}},{"$f":"tryktab(Beregning!J41,$B41,J$23,Beregning!$K$7,J$19,Beregning!$K$10)","v":{"$error":"#VALUE!"}},{"$f":"tryktab(Beregning!K41,$B41,K$23,Beregning!$K$7,K$19,Beregning!$K$10)","v":{"$error":"#VALUE!"}},{"$f":"tryktab(Beregning!L41,$B41,L$23,Beregning!$K$7,L$19,Beregning!$K$10)","v":{"$error":"#VALUE!"}},{"$f":"tryktab(Beregning!M41,$B41,M$23,Beregning!$K$7,M$19,Beregning!$K$10)","v":{"$error":"#VALUE!"}},{"$f":"tryktab(Beregning!N41,$B41,N$23,Beregning!$K$7,N$19,Beregning!$K$10)","v":{"$error":"#VALUE!"}},{"$f":"tryktab(Beregning!O41,$B41,O$23,Beregning!$K$7,O$19,Beregning!$K$10)","v":{"$error":"#VALUE!"}}]
[null,"90° kryds afbøjning",null,null,"mbar",{"$f":"tryktab(Beregning!F42,$B42,F$23,Beregning!$K$7,F$19,Beregning!$K$10)","v":{"$error":"#VALUE!"}},{"$f":"tryktab(Beregning!G42,$B42,G$23,Beregning!$K$7,G$19,Beregning!$K$10)","v":{"$error":"#VALUE!"}},{"$f":"tryktab(Beregning!H42,$B42,H$23,Beregning!$K$7,H$19,Beregning!$K$10)","v":{"$error":"#VALUE!"}},{"$f":"tryktab(Beregning!I42,$B42,I$23,Beregning!$K$7,I$19,Beregning!$K$10)","v":{"$error":"#VALUE!"}},{"$f":"tryktab(Beregning!J42,$B42,J$23,Beregning!$K$7,J$19,Beregning!$K$10)","v":{"$error":"#VALUE!"}},{"$f":"tryktab(Beregning!K42,$B42,K$23,Beregning!$K$7,K$19,Beregning!$K$10)","v":{"$error":"#VALUE!"}},{"$f":"tryktab(Beregning!L42,$B42,L$23,Beregning!$K$7,L$19,Beregning!$K$10)","v":{"$error":"#VALUE!"}},{"$f":"tryktab(Beregning!M42,$B42,M$23,Beregning!$K$7,M$19,Beregning!$K$10)","v":{"$error":"#VALUE!"}},{"$f":"tryktab(Beregning!N42,$B42,N$23,Beregning!$K$7,N$19,Beregning!$K$10)","v":{"$error":"#VALUE!"}},{"$f":"tryktab(Beregning!O42,$B42,O$23,Beregning!$K$7,O$19,Beregning!$K$10)","v":{"$error":"#VALUE!"}}]
[null,"90° rensekryds gennemgang",null,null,"mbar",{"$f":"tryktab(Beregning!F43,$B43,F$23,Beregning!$K$7,F$19,Beregning!$K$10)","v":{"$error":"#VALUE!"}},{"$f":"tryktab(Beregning!G43,$B43,G$23,Beregning!$K$7,G$19,Beregning!$K$10)","v":{"$error":"#VALUE!"}},{"$f":"tryktab(Beregning!H43,$B43,H$23,Beregning!$K$7,H$19,Beregning!$K$10)","v":{"$error":"#VALUE!"}},{"$f":"tryktab(Beregning!I43,$B43,I$23,Beregning!$K$7,I$19,Beregning!$K$10)","v":{"$error":"#VALUE!"}},{"$f":"tryktab(Beregning!J43,$B43,J$23,Beregning!$K$7,J$19,Beregning!$K$10)","v":{"$error":"#VALUE!"}},{"$f":"tryktab(Beregning!K43,$B43,K$23,Beregning!$K$7,K$19,Beregning!$K$10)","v":{"$error":"#VALUE!"}},{"$f":"tryktab(Beregning!L43,$B43,L$23,Beregning!$K$7,L$19,Beregning!$K$10)","v":{"$error":"#VALUE!"}},{"$f":"tryktab(Beregning!M43,$B43,M$23,Beregning!$K$7,M$19,Beregning!$K$10)","v":{"$error":"#VALUE!"}},{"$f":"tryktab(Beregning!N43,$B43,N$23,Beregning!$K$7,N$19,Beregning!$K$10)","v":{"$error":"#VALUE!"}},{"$f":"tryktab(Beregning!O43,$B43,O$23,Beregning!$K$7,O$19,Beregning!$K$10)","v":{"$error":"#VALUE!"}}]
[null,"90° rensekryds afbøjning",null,null,"mbar",{"$f":"tryktab(Beregning!F44,$B44,F$23,Beregning!$K$7,F$19,Beregning!$K$10)","v":{"$error":"#VALUE!"}},{"$f":"tryktab(Beregning!G44,$B44,G$23,Beregning!$K$7,G$19,Beregning!$K$10)","v":{"$error":"#VALUE!"}},{"$f":"tryktab(Beregning!H44,$B44,H$23,Beregning!$K$7,H$19,Beregning!$K$10)","v":{"$error":"#VALUE!"}},{"$f":"tryktab(Beregning!I44,$B44,I$23,Beregning!$K$7,I$19,Beregning!$K$10)","v":{"$error":"#VALUE!"}},{"$f":"tryktab(Beregning!J44,$B44,J$23,Beregning!$K$7,J$19,Beregning!$K$10)","v":{"$error":"#VALUE!"}},{"$f":"tryktab(Beregning!K44,$B44,K$23,Beregning!$K$7,K$19,Beregning!$K$10)","v":{"$error":"#VALUE!"}},{"$f":"tryktab(Beregning!L44,$B44,L$23,Beregning!$K$7,L$19,Beregning!$K$10)","v":{"$error":"#VALUE!"}},{"$f":"tryktab(Beregning!M44,$B44,M$23,Beregning!$K$7,M$19,Beregning!$K$10)","v":{"$error":"#VALUE!"}},{"$f":"tryktab(Beregning!N44,$B44,N$23,Beregning!$K$7,N$19,Beregning!$K$10)","v":{"$error":"#VALUE!"}},{"$f":"tryktab(Beregning!O44,$B44,O$23,Beregning!$K$7,O$19,Beregning!$K$10)","v":{"$error":"#VALUE!"}}]
[null,"Hane (kuglehane)",null,null,"mbar",{"$f":"tryktab(Beregning!F45,$B45,F$23,Beregning!$K$7,F$19,Beregning!$K$10)","v":{"$error":"#VALUE!"}},{"$f":"tryktab(Beregning!G45,$B45,G$23,Beregning!$K$7,G$19,Beregning!$K$10)","v":{"$error":"#VALUE!"}},{"$f":"tryktab(Beregning!H45,$B45,H$23,Beregning!$K$7,H$19,Beregning!$K$10)","v":{"$error":"#VALUE!"}},{"$f":"tryktab(Beregning!I45,$B45,I$23,Beregning!$K$7,I$19,Beregning!$K$10)","v":{"$error":"#VALUE!"}},{"$f":"tryktab(Beregning!J45,$B45,J$23,Beregning!$K$7,J$19,Beregning!$K$10)","v":{"$error":"#VALUE!"}},{"$f":"tryktab(Beregning!K45,$B45,K$23,Beregning!$K$7,K$19,Beregning!$K$10)","v":{"$error":"#VALUE!"}},{"$f":"tryktab(Beregning!L45,$B45,L$23,Beregning!$K$7,L$19,Beregning!$K$10)","v":{"$error":"#VALUE!"}},{"$f":"tryktab(Beregning!M45,$B45,M$23,Beregning!$K$7,M$19,Beregning!$K$10)","v":{"$error":"#VALUE!"}},{"$f":"tryktab(Beregning!N45,$B45,N$23,Beregning!$K$7,N$19,Beregning!$K$10)","v":{"$error":"#VALUE!"}},{"$f":"tryktab(Beregning!O45,$B45,O$23,Beregning!$K$7,O$19,Beregning!$K$10)","v":{"$error":"#VALUE!"}}]
[null,"Vinkelhane",null,null,"mbar",{"$f":"tryktab(Beregning!F46,$B46,F$23,Beregning!$K$7,F$19,Beregning!$K$10)","v":{"$error":"#VALUE!"}},{"$f":"tryktab(Beregning!G46,$B46,G$23,Beregning!$K$7,G$19,Beregning!$K$10)","v":{"$error":"#VALUE!"}},{"$f":"tryktab(Beregning!H46,$B46,H$23,Beregning!$K$7,H$19,Beregning!$K$10)","v":{"$error":"#VALUE!"}},{"$f":"tryktab(Beregning!I46,$B46,I$23,Beregning!$K$7,I$19,Beregning!$K$10)","v":{"$error":"#VALUE!"}},{"$f":"tryktab(Beregning!J46,$B46,J$23,Beregning!$K$7,J$19,Beregning!$K$10)","v":{"$error":"#VALUE!"}},{"$f":"tryktab(Beregning!K46,$B46,K$23,Beregning!$K$7,K$19,Beregning!$K$10)","v":{"$error":"#VALUE!"}},{"$f":"tryktab(Beregning!L46,$B46,L$23,Beregning!$K$7,L$19,Beregning!$K$10)","v":{"$error":"#VALUE!"}},{"$f":"tryktab(Beregning!M46,$B46,M$23,Beregning!$K$7,M$19,Beregning!$K$10)","v":{"$error":"#VALUE!"}},{"$f":"tryktab(Beregning!N46,$B46,N$23,Beregning!$K$7,N$19,Beregning!$K$10)","v":{"$error":"#VALUE!"}},{"$f":"tryktab(Beregning!O46,$B46,O$23,Beregning!$K$7,O$19,Beregning!$K$10)","v":{"$error":"#VALUE!"}}]
[null,"Ventil",null,null,"mbar",{"$f":"tryktab(Beregning!F47,$B47,F$23,Beregning!$K$7,F$19,Beregning!$K$10)","v":{"$error":"#VALUE!"}},{"$f":"tryktab(Beregning!G47,$B47,G$23,Beregning!$K$7,G$19,Beregning!$K$10)","v":{"$error":"#VALUE!"}},{"$f":"tryktab(Beregning!H47,$B47,H$23,Beregning!$K$7,H$19,Beregning!$K$10)","v":{"$error":"#VALUE!"}},{"$f":"tryktab(Beregning!I47,$B47,I$23,Beregning!$K$7,I$19,Beregning!$K$10)","v":{"$error":"#VALUE!"}},{"$f":"tryktab(Beregning!J47,$B47,J$23,Beregning!$K$7,J$19,Beregning!$K$10)","v":{"$error":"#VALUE!"}},{"$f":"tryktab(Beregning!K47,$B47,K$23,Beregning!$K$7,K$19,Beregning!$K$10)","v":{"$error":"#VALUE!"}},{"$f":"tryktab(Beregning!L47,$B47,L$23,Beregning!$K$7,L$19,Beregning!$K$10)","v":{"$error":"#VALUE!"}},{"$f":"tryktab(Beregning!M47,$B47,M$23,Beregning!$K$7,M$19,Beregning!$K$10)","v":{"$error":"#VALUE!"}},{"$f":"tryktab(Beregning!N47,$B47,N$23,Beregning!$K$7,N$19,Beregning!$K$10)","v":{"$error":"#VALUE!"}},{"$f":"tryktab(Beregning!O47,$B47,O$23,Beregning!$K$7,O$19,Beregning!$K$10)","v":{"$error":"#VALUE!"}}]
[null,"Tryktab i komponenter",null,null,null,{"$f":"IFERROR(IF(SUM(F27:F47)>0,SUM(F27:F47),\"\"),\"\")","v":""},{"$f":"IFERROR(IF(SUM(G27:G47)>0,SUM(G27:G47),\"\"),\"\")","v":""},"","","","","","","",""]
[null,"Samlet tryktab",null,null,null,{"$f":"SUM(F21,F25,F48)","v":0},{"$f":"SUM(G21,G25,G48)","v":0},0,0,0,0,0,0,0,0]

{"sheet":"Gasser","index":4,"n_rows":23,"n_cols":22,"rows_kept":23,"cut":false,"hidden":true,"merged":[]}
[]
[null,"kilde","år 2017, energinet.dk","notat","notat","email Jørgen Jep. +beregning","tkv","notat"]
[]
[null,"Egenskab/Navn","Naturgas","Importeret naturgas","Naturgas, min","Bygas (NG/luft)","Biogas, ikke opgraderet","Biogas, opgraderet"]
[null,"Øvre brændværdi [kWh/m3n]",12.178000000000001,11.23,10.69,6.3106541912273864,7.1899263304953314,11]
[null,"Massefylde [kg/m3n]",0.82609999999999995,0.74299999999999999,0.71,1.076276865932593,1.1579363882138118,0.72199999999999998]
[null,"Relativ massefylde, [-]",0.63890000000000002,0.57399999999999995,0.55500000000000005,null,null,0.55800000000000005]
[null,"*Luftens massefylde (0 hr. C),[kg/m3]",{"$f":"C6/C7","v":1.2930035999373923},{"$f":"D6/D7","v":1.2944250871080141},{"$f":"E6/E7","v":1.2792792792792791},null,null,{"$f":"H6/H7","v":1.2939068100358422}]
[null,"Trykændring [mbar/m]",{"$f":"9.81*(C8-C6)*1/100","v":4.5803243153858197E-2},{"$f":"9.81*(D8-D6)*1/100","v":5.4094801045296181E-2},{"$f":"9.81*(E8-E6)*1/100","v":5.5846297297297287E-2},2.0475739452012625E-2,1.246494031622505E-2,{"$f":"9.81*(H8-H6)*1/100","v":5.610405806451612E-2}]
[]
[null,"Kommentar",null,"Kilde: Energinet´s notat \"Fremtidige naturgaskvaliteter -Faktablad\", februar 2017 ","Historisk minimal brændværdi"]
[]
[]
[null,"Gasnavne"]
[null,"Naturgas"]
[null,"Importeret naturgas"]
[null,"Naturgas, min"]
[null,"Bygas (NG/luft)"]
[null,"Biogas, ikke opgraderet"]
[null,"Biogas, opgraderet"]
[null,null,null,null,null,null,null,null,null,null,null,null,"*"]
[null,null,null,null,null,null,null,null,null,null,null,null,"(luft, O0C)","Massefylde [kg/m3n]",null,null,1.29," "," (Danvak tabellen, tør luft)",null,null,"eller ud fra rel. density:"]
[null,null,null,null,null,null,null,null,null,null,null,null,"Højdetrykændring (mbar/m) ",null,null,null,{"$f":"(Q22-C6)*9.81/100*1","v":4.5508590000000008E-2}]

{"sheet":"Rørtyper","index":5,"n_rows":13,"n_cols":4,"rows_kept":13,"cut":false,"hidden":true,"merged":[]}
[]
[null,null,"Øvre værdier fra tabel 9A-1 og A.08.01 (worst case)"]
[]
[null,null,"Rørtype","Ækvivalent sandruhed K"]
[null,null,"Brugerdefineret",0]
[null,null,"Kobberrør",5.0000000000000001E-3]
[null,null,"PE-rør (plastrør)",0.01]
[null,null,"Trukne stålrør, nye",0.05]
[null,null,"Svejste stålrør, nye",0.15]
[null,null,"Svejste stålrør med afsætning",3]
[null,null,"Stålrør med epoxy-coating",0.03]
[null,null,"Sømløse stålrør",0.1]
[null,null,"Sandblæste stålrør",0.03]

{"sheet":"Versioner","index":6,"n_rows":10,"n_cols":3,"rows_kept":10,"cut":false,"hidden":true,"merged":[]}
[]
[]
[]
[null,"Version","Ændringer"]
[]
[null,"1.0.0","Første publicerede version"]
[]
[null,"1.1.0","Tilføjelse af gasserne: \"Importeret naturgas\", \"Naturgas, min\" og \"Biogas, opgraderet\""]
[]
[null,"1.1.1","Implementering af ekstra vejledning fra IMO"]